Cogmind - Beta 15 @@@ ROGUE MODE // 2025.05.29 @ 03:21:34 Player: K0T Result: Destroyed by ZY-2AG(R) with Subdweller Laser Performance ------------- Evolutions (0) 0 Regions Visited (2) 400 Robots Destroyed (19) 95 Value Destroyed (411) 411 Prototype IDs (0) 0 Alien Tech Used (0) 0 Bonus (0) 0 TOTAL SCORE: 906 Bonus ------- None Cogmind --------- Core Integrity 0/250 Matter 279/300 Energy 100/100 System Corruption 6% Temperature Cool (6) Movement Core (450) Ox8 Location -10/Subcaves Parts ------- > --- POWER (1) -------- (None) > --- PROPULSION (2) --- (None) > --- UTILITY (2) ------ Large Storage Unit Structural Scanner > --- WEAPON (2) ------- Medium Laser Medium Laser > --- INVENTORY (15) --- Light Treads Light Treads Large Storage Unit Large Storage Unit Improved Targeting Computer Improved Targeting Computer Field Recycling Unit (0) Battle Rifle Improved Light Cannon Improved Light Cannon Improved Light Cannon Grenade Launcher Mining Laser Peak State ------------ > --- POWER ------------ Subdweller Power Source > --- PROPULSION ------- Light Treads Light Treads > --- UTILITY ---------- Large Storage Unit Structural Scanner > --- WEAPON ----------- Medium Laser Assault Rifle > --- INVENTORY -------- Light Treads Light Treads Large Storage Unit Large Storage Unit Improved Targeting Computer Improved Targeting Computer Field Recycling Unit Medium Laser Medium Laser Improved Light Cannon Improved Light Cannon Improved Light Cannon Grenade Launcher Mining Laser [Rating: 10] Favorites ----------- Power Ion Engine Engine Ion Engine Propulsion Light Treads Treads Light Treads Utility Structural Scanner Device Structural Scanner Storage Large Storage Unit Weapon Assault Rifle Energy Gun Medium Laser Ballistic Gun Assault Rifle Build | -11 -10 -10 ------- Run | Yrd Mat Sub Slots Evolved . | . . . Power . | . . . Propulsion . | . . . Utility . | . . . Weapon . | . . . Parts Attached 15 | 6 4 5 Power 3 | 1 . 2 Engine 3 | 1 . 2 Core . | . . . Reactor . | . . . Propulsion 3 | 2 . 1 Treads 3 | 2 . 1 Leg . | . . . Wheel . | . . . Hover . | . . . Flight . | . . . Utility 3 | 1 2 . Device 1 | . 1 . Storage 2 | 1 1 . Processor . | . . . Hackware . | . . . Protection . | . . . Artifact . | . . . Weapon 6 | 2 2 2 Energy Gun 4 | 1 1 2 Energy Cannon . | . . . Ballistic Gun 2 | 1 1 . Ballistic Cannon . | . . . Launcher . | . . . Special Weapon . | . . . Impact Weapon . | . . . Slashing Weapon . | . . . Piercing Weapon . | . . . Special Melee Weapon . | . . . Unidentified Prototypes . | . . . Parts Lost 6 | . . 6 Power 2 | . . 2 Propulsion 2 | . . 2 Utility . | . . . Weapon 2 | . . 2 Highest Loss Streak 4 | . . 4 To Critical Strikes . | . . . Average Backups 11 | . 10 14 Power . | . . . Propulsion 2 | . 2 2 Utility 3 | . 2 5 Weapon 5 | . 4 7 Tool/Special . | . . . Unused Backups 18 | . 5 13 Power . | . . . Propulsion 2 | . . 2 Utility 7 | . 2 5 Weapon 9 | . 3 6 Tool/Special . | . . . Average Slot Usage (%) 96 | . 99 91 Engine 12 | . 14 11 Treads 25 | . 28 22 Device 13 | . 13 14 Storage 14 | . 14 14 Energy Gun 14 | . 14 14 Ballistic Gun 13 | . 14 13 Peak Build Rating 10 | 6 9 10 Average Rating 7 | 3 7 8 On Entrance 5 | . 6 9 Naked Turns . | . . . Heaviest Build 30 | 13 30 30 Greatest Support 40 | 40 40 40 Greatest Overweight (x) 8 | . . 8 Average Overweight (x) . | . . . Largest Inventory Capacity 15 | 8 15 15 Average Capacity 14 | 7 14 15 Most Carried 15 | 5 15 15 Average Carried 11 | 1 10 14 Final Capacity 15 | 8 15 15 Final Carried 15 | . 15 13 Class Distribution -------------------- 100% | Mutant Dominant Class ---------------- Mutant | -10/Materials Mutant | -10/Subcaves Resources | -11 -10 -10 ----------- Run | Yrd Mat Sub Matter Collected 525 | 216 189 120 Remotely . | . . . Salvage Created 604 | . 398 206 Parts 34 | . 13 21 Haulers Intercepted 2 | . 2 . Recyclers Shooed . | . . . Parts Field Recycled . | . . . Retrieved Matter . | . . . Parts Self-Destructed 19 | . . 19 Prevented . | . . . Kills | -11 -10 -10 ------- Run | Yrd Mat Sub Combat Hostiles Destroyed 17 | . 8 9 Guns 17 | . 8 9 Classes Destroyed 4 | . 3 1 Hauler 2 | . 2 . Swarmer 9 | . 3 6 Grunt 7 | . 5 2 Subdweller 1 | . . 1 Best Kill Streak 3 | . 3 3 Combat Bots Only 3 | . 3 3 Max Kills in Single Turn 2 | . 2 2 Gunslinging 1 | . . 1 Exploded . | . . . Melee . | . . . Uniques/NPCs Destroyed . | . . . Combat | -11 -10 -10 -------- Run | Yrd Mat Sub Hostile Shots Fired 123 | . 34 89 Missed 39 | . 11 28 Hits 84 | . 23 61 Projectile 84 | . 23 61 AOE 3 | . . 3 Critical Strikes 1 | . 1 . Damage Taken 1055 | . 276 779 Core 252 | . 35 217 Absorbed by Shields . | . . . Core Remaining (%) 100 | 100 . . Volleys Fired 61 | . 33 28 Largest 2 | . 2 2 Hottest 100 | . 70 100 Shots Fired 118 | . 64 54 Gun 118 | . 64 54 Cannon . | . . . Launcher . | . . . Special . | . . . Kinetic 58 | . 33 25 Thermal 60 | . 31 29 Explosive . | . . . Electromagnetic . | . . . Robot Hit Streak 7 | . 6 7 Robot Miss Streak 7 | . 7 3 Penetration Max . | . . . Secondary Targets 5 | . 2 3 Max Gunslinging Chain 1 | . 1 1 Shots Hit Robots 68 | . 33 35 Core Hits 32 | . 18 14 Critical Kills 1 | . . 1 Critical Parts Destroyed 3 | . 1 2 Critical Strikes 8 | . 2 6 Burn 4 | . 1 3 Destroy 4 | . 1 3 Melee Attacks . | . . . Impact . | . . . Slashing . | . . . Piercing . | . . . Sneak Attacks . | . . . Combat Hostiles . | . . . Follow-up Attacks . | . . . Damage Inflicted 850 | . 415 435 Guns 850 | . 415 435 Cannons . | . . . Explosions . | . . . Melee . | . . . Ramming . | . . . Kinetic 452 | . 230 222 Thermal 398 | . 185 213 Explosive . | . . . Electromagnetic . | . . . Impact . | . . . Slashing . | . . . Piercing . | . . . Highest Corruption 6 | . 6 6 Average Corruption 5 | . 5 6 Corruption Purged . | . . . Corruption Blocked . | . . . Effects 29 | . 9 20 Message Errors 5 | . 1 4 Matter Fused 6 | . 1 5 Heat Flow Errors 4 | . 2 2 Energy Discharges 4 | . 2 2 Parts Rejected 1 | . . 1 Parts Fused 1 | . . 1 Data Loss (minor) 3 | . 2 1 Data Loss (major) 1 | . 1 . Misfires 1 | . . 1 Alerts 1 | . . 1 Weapon Failures 2 | . . 2 Overload Shots . | . . . Overflow Damage . | . . . Projectiles . | . . . Explosions . | . . . Melee . | . . . Knockbacks . | . . . Impact . | . . . Kinetic . | . . . Secondary . | . . . Self-Inflicted Damage . | . . . Shots . | . . . Rammed . | . . . Targets Rammed . | . . . Kicked . | . . . Crushed . | . . . Highest Temperature 135 | . 135 131 Average Temperature 40 | . 39 42 Received Heat Transfer 411 | . 156 255 Siege Activations . | . . . Martial Activations . | . . . Shielding Activations . | . . . Robots Disrupted . | . . . Combat Hostiles . | . . . Robots Corrupted . | . . . Combat Hostiles . | . . . Parts Fried . | . . . Impact Corruptions . | . . . Robots Melted . | . . . Combat Hostiles . | . . . Parts Melted . | . . . Heat Transferred 1349 | . 498 851 Parts Sabotaged . | . . . Parts Stolen . | . . . Parts Stripped . | . . . Power Chain Reactions . | . . . Alert | -11 -10 -10 ------- Run | Yrd Mat Sub Maximum Alert Level . | . . . Low Security (%) 100 | 100 100 . Level 1 . | . . . Level 2 . | . . . Level 3 . | . . . Level 4 . | . . . Level 5 . | . . . High Security . | . . . Max Security . | . . . Peak Influence 105 | . 105 . Initial . | . . . Average 22 | . 23 . Influence Increases 582 | . 267 315 Destroy 0b10 Robot/C 320 | . 160 160 Destroy 0b10 Robot/NC 10 | . 10 . Destroy Leader 64 | . 44 20 Successful Hack 22 | . 22 . Select Force Hacks 30 | . 30 . Destroy Structure 1 | . 1 . Lose Combat Pursuer 135 | . . 135 Influence Decreases 582 | . 255 327 Entered New Map 7 | . . 7 Time Decay 524 | . 255 269 Lost Part 51 | . . 51 Squads Dispatched 1 | . 1 . Investigation 1 | . 1 . Extermination . | . . . Reinforcement . | . . . Assault . | . . . Garrison . | . . . Intercept . | . . . Searches Triggered . | . . . Construction Impeded . | . . . Haulers Reinforced . | . . . Active Scanning Responses . | . . . Cargo Convoy Interrupts . | . . . Stealth | -11 -10 -10 --------- Run | Yrd Mat Sub Distress Signals . | . . . Communications Jammed . | . . . Distress Signals . | . . . Times Spotted 35 | . 19 16 Peak Tracking Total 6 | . 5 6 Tactical Retreats 4 | . . 4 Traps | -11 -10 -10 ------- Run | Yrd Mat Sub Traps Triggered 5 | . 4 1 Indirectly . | . . . Trap Hack Attempts . | . . . Triggered . | . . . Disarmed . | . . . Reprogrammed . | . . . Reused . | . . . Traps Extracted . | . . . Installed . | . . . Triggered . | . . . Machines | -11 -10 -10 ---------- Run | Yrd Mat Sub Machines Disabled . | . . . Max in Single Turn . | . . . Machines Repaired . | . . . Machines Dismantled . | . . . Machines Sabotaged . | . . . Overloaded Fab Kills . | . . . Hacking | -11 -10 -10 --------- Run | Yrd Mat Sub Machines Accessed 9 | . 8 1 Terminals 7 | . 7 . Fabricators . | . . . Repair Stations . | . . . Recycling Units 1 | . 1 . Scanalyzers . | . . . Garrison Access . | . . . Total Hacks 22 | . 20 2 Successful 12 | . 10 2 Failed 9 | . 9 . Catastrophic 1 | . 1 . Database Lockouts 1 | . 1 . Manual 16 | . 16 . Terminals 17 | . 17 . Fabricators . | . . . Repair Stations . | . . . Recycling Units 3 | . 3 . Scanalyzers . | . . . Garrison Access . | . . . Terminal Hacks 4 | . 2 2 Record 2 | . . 2 Robot Analysis 2 | . 2 . Fabricator Hacks . | . . . Repair Station Hacks . | . . . Recycling Unit Hacks 1 | . 1 . Retrieve Components 1 | . 1 . Scanalyzer . | . . . Garrison Access Hacks . | . . . Unauthorized Hacks 7 | . 7 . Terminals 6 | . 6 . Botnet 3 | . 3 . Skim 3 | . 3 . Fabricators . | . . . Repair Stations . | . . . Recycling Units 1 | . 1 . Tunnel 1 | . 1 . Scanalyzers . | . . . Garrison Access . | . . . Data Cores Recovered . | . . . Used . | . . . Hacking Detections 7 | . 7 . Full Trace Events 1 | . 1 . Feedback Events . | . . . Feedback Blocked . | . . . Robot Schematics Acquired . | . . . Robots Built . | . . . Authchips . | . . . Time . | . . . Total Robot Build Rating . | . . . Part Schematics Acquired . | . . . Parts Built . | . . . Authchips . | . . . Time . | . . . Total Part Build Rating . | . . . Parts Repaired . | . . . Time . | . . . Parts Recycled . | . . . Recycled Matter . | . . . Retrieved Matter . | . . . Retrieved Components 9 | . 9 . Parts Scanalyzed . | . . . Part Schematics Acquired . | . . . Parts Damaged . | . . . Bothacking | -11 -10 -10 ------------ Run | Yrd Mat Sub Used RIF Installer . | . . . Robots Hacked . | . . . Non-combat . | . . . Combat . | . . . Robot Hacks Applied . | . . . Relay Couplers Released . | . . . Fabnet Peak Effective % . | . . . Robots Rewired . | . . . Allies Hacked . | . . . Hacks Repelled . | . . . Allies | -11 -10 -10 -------- Run | Yrd Mat Sub Total Allies . | . . . Largest Group . | . . . Highest-Rated Group . | . . . Highest-Rated Ally . | . . . Total Orders . | . . . Ally Attacks . | . . . Total Damage . | . . . Kills . | . . . Allies Corrupted . | . . . Allies Melted . | . . . Intel | -11 -10 -10 ------- Run | Yrd Mat Sub Active Infowar (turns) 1848 | . 1064 784 Structural 1848 | . 1064 784 Robot Analysis Total 2 | . 2 . Derelict Logs Recovered 2 | . . 2 Drone Launches . | . . . Drone Recoveries . | . . . Exploration | -11 -10 -10 ------------- Run | Yrd Mat Sub Turns Passed 1917 | 46 1087 784 Spaces Moved 967 | 33 558 376 Core 21 | 16 . 5 Treads 946 | 17 558 371 Legs . | . . . Wheels . | . . . Hover . | . . . Flight . | . . . Fastest Speed 50 | 50 160 160 Average Speed 167 | 106 160 183 Slowest Speed 450 | 160 160 450 Overloaded Moves . | . . . Propulsion Burnouts . | . . . Robots Hopped . | . . . Potential Cave-ins . | . . . Cave-ins Triggered . | . . . Exploration Rate (%) 42 | 3 88 36 Regions Visited 2 Branch Regions 1 Pre-discovered Areas 3 | . 1 2 Known Exits Taken . | . . . Unknown Exits Taken 2 | 1 1 . Scrap Searched . | . . . Spaces Dug . | . . . Terrain Destroyed . | . . . Melee . | . . . Projectile . | . . . AOE . | . . . Terrain Rammed . | . . . Walls Destroyed . | . . . Machines Disabled . | . . . Actions | -11 -10 -10 --------- Run | Yrd Mat Sub Total 1148 | 43 691 414 Wait 67 | . 65 2 Move 965 | 32 557 376 Hop . | . . . Pick Up 31 | 5 24 2 Fast Attach 2 | 1 . 1 Attach 10 | 5 1 4 Detach . | . . . Swap 3 | . 3 . Drop 9 | . 8 1 Fire 61 | . 33 28 Melee . | . . . Ram . | . . . Kick . | . . . Crush . | . . . Escape Stasis . | . . . Rewire . | . . . Trap . | . . . Miscellaneous . | . . . Route ------- -11/Scrapyard -10/Materials (discovered 5 exits: [*Mat x3] / [*Min] / *Sub) -10/Subcaves (discovered 1 exit: [*Rec]) History --------- Turn | Location | Event 4 | -11/Scrapyard | Discovered new exit (range 16) 47 | -11/Scrapyard | Entered Materials 253 | -10/Materials | Central database locked down 272 | -10/Materials | Discovered new exit (range 15) 313 | -10/Materials | Build established: Mutant 483 | -10/Materials | Discovered new exit (range 13) 493 | -10/Materials | Discovered new exit (range 6) 883 | -10/Materials | Discovered new exit (range 11) 1023 | -10/Materials | Discovered new exit (range 4) 1134 | -10/Materials | Entered Subcaves 1301 | -10/Subcaves | Discovered new exit (range 16) 1353 | -10/Subcaves | Learned location of 1 exit from Materials 1375 | -10/Subcaves | Learned location of Zion (-6) 1375 | -10/Subcaves | Met a Zionite searching for "candidates" 1401 | -10/Subcaves | Shifting Twisted Machinery released Battle Rifle 1401 | -10/Subcaves | Shifting Twisted Machinery released Sub. Power Source 1663 | -10/Subcaves | Core integrity fell below 50% 1685 | -10/Subcaves | Visited Clippyterm 1692 | -10/Subcaves | Learned Factory garrison access intel 1888 | -10/Subcaves | Core integrity fell below 20% 1918 | -10/Subcaves | Lost 4 parts (1p1n2w) 1918 | -10/Subcaves | Destroyed by ZY-2AG(R) with Subdweller Laser Last Messages --------------- World map confirmed: -9/Storage. 01800_ Subatomizers dissect the Disposable Heat Sink. 01806_ K8EEV,LUAVEHMPQG:CHJA7IOFJISA 01838_ Subatomizers dissect the Sub. Laser. 01859_ System corrupted: Matter fused (-5). 01864_ Subatomizers dissect the Sub. Power Source. 01883_ Assault Rifle destroyed. 01885_ Lgt. Treads destroyed. 01885_ Med. Laser destroyed. 01887_ Subatomizers dissect the Sub. Power Source. 01887_ Ion Engine destroyed. 01889_ JJ-5MN(R) destroyed. 01902_ Subatomizers dissect the Sub. Power Source. 01910_ System corrupted: Matter fused (-6). 01917_ Subatomizers dissect the Sub. Power Source. Map ----- +----------------------------------------------------+ | ????????????????????????????????????????????????? | | ????????????????????????????????????????????????? | | ????????????????????????????????????????????????? | | ????????????????????????????????????????????????? | | ????????????????????????????????????????????????? | | ????????????????????????????????????????????????? | | ????????????????????????????????????????????????? | | ????????????????????????????????????????????????? | | ????????????????????????????????????????????????? | | ????????????????????????????????????????????????? | | ????????????????????????????????????????????????? | | ??????????????????????????## ???????????????????? | | ?????????????????????#######R ??????????????????? | | ?????????????????????######; ??????????????????? | | ?????????????????????##;;;; " ?????????????????? | | ?????????????????????##; && ;#"?????????????????? | | ?????????????????????## =%&;##?????????????????? | | ??????????????######?## &!;;##?????????????????? | | ??????????????#########; ;; ##?????????????????? | | ??????????????## ####; ;;;##?????????????????? | | ??????????????### ###; ###?????????????????? | | ??????????????### ### ###?????????????????? | | ??????????????### ## ####????????????????? | | ??????????????## ###????????????????? | | ??????????????## ###???????????????? | | ??????????????### @ ####??????????????? | | ???????????????## ###??????????????? | | ???????????????## ##??????????????? | | ???????????????## ##??????????????? | | ???????????????## ######??????????????? | | ???????????????## &#######????????????? | | ???????????????## &*## ####????????????? | | ???????????????## ####""%!& #####?????????? | | ???????????????### #### """"[ #####?????????? | | ???????????????######### "" ## ##?????????? | | ????????????????####### ### ##?????????? | | ?????????????????###### #### # ##?????????? | | ????????????????### ### #### #####???????? | | ????????????????### %&## % #####???????? | | ???????????????### " & # ##???????? | | ???????????????### ###"" # ##???????? | | ???????????????## ### ### ##???????? | | ???????????????## ### #### ##???????? | | ???????????????## ##### ### #### ???????? | | ??????????????### #### #######??? ##???? | | ??????????????### #### ####### ?? ##???? | | ??????????????## ### #########??? ######???? | | ??????????????### ## ## ##??? #####????? | | ??????????????## # ###??? ##???????? | | ??????????????## ### ## ? ####????????????? | +----------------------------------------------------+ Best States ------------- Heat Dissipation 25 Energy Generation 15 Energy Capacity 250 Matter Stores 300 Matter Capacity 300 Sight Range 16 Terrain Scan Density 10 Evasion (%) 50 Recoil Reduction 2 Item Schematics ----------------- None Robot Schematics ------------------ None Fabricated ------------ Nothing Repaired ---------- Nothing Alien Tech Used ----------------- None Achievements -------------- None Challenges ------------ None Game ------ Seed BladeMiniScythe Manual? 0 Play Time 00:16:17 Cumulative 142.5 hours Start 2025.05.29 @ 03:09:09 End 2025.05.29 @ 03:21:34 Sessions 1 Manual Loads 0 Difficulty Rogue Special Mode None Game No. 71 Rogue 58 Adventurer 13 Explorer 0 Win Type - Total 1 Types 1/0/0/0/0/0/0/0/0/0 Lore% 35 Gallery% 39 Achievement% 40 Wizard Run 0 Options --------- Layout 1 ASCII 0 Keyboard 0 Movement Arrows Keybinds 0 Fullscreen 1 Font 24/Smallcaps Map View 50x35 Zoom Use 0% Tactical HUD 1 Map Filters NONE Filters NONE Steam 0 RUN: db642200-ee0c-4bd7-8286-c229ab8af6f6